bitfinex-derivatives/quotes_BTCF0:USTF0_20251120
["timestamp","ask_amount","ask_price","bid_price","bid_amount"]
[1763661952173,0.12271455,87257.0,87245.0,0.0114744]
[1763661952371,0.0114735,87254.0,87246.0,0.00219803]
[1763661952571,0.0007326,87247.0,87246.0,0.00219803]
[1763661953270,0.1225426,87247.0,87246.0,0.00219803]
[1763661953480,0.0007326,87247.0,87246.0,0.00219803]
[1763661953976,0.12181,87241.0,87240.0,0.00017195]
[1763661954171,0.1225426,87241.0,87240.0,0.00236998]
[1763661954372,0.0007326,87241.0,87240.0,0.12625998]
[1763661954571,0.04098098,87253.0,87247.0,0.0114743]
[1763661954876,0.04098098,87253.0,87248.0,0.00219803]
[1763661955077,0.1225426,87249.0,87248.0,0.00219803]
[1763661955970,0.0637526,87249.0,87248.0,0.00219803]
[1763661956172,0.0007326,87249.0,87248.0,0.00219803]
[1763661956373,0.12181,87241.0,87240.0,0.00017195]
[1763661956576,0.1225426,87241.0,87240.0,0.00017195]
[1763661956976,0.1225426,87241.0,87240.0,0.00236998]
[1763661957383,0.0007326,87241.0,87240.0,0.06414998]
[1763661957676,0.0007326,87241.0,87240.0,0.12625998]
[1763661958071,0.04098098,87260.0,87250.0,0.0114739]
[1763661958269,0.0007326,87256.0,87252.0,0.0114736]
[1763661958478,0.1225426,87256.0,87255.0,0.00219803]
[1763661959081,0.0637526,87256.0,87255.0,0.00219803]
[1763661959380,0.04098098,87263.0,87256.0,0.0114731]
[1763661959581,0.0276636,87265.0,87256.0,0.13756113]
[1763661959785,0.00090455,87257.0,87256.0,0.12608803]
[1763661959985,0.00090455,87257.0,87256.0,0.13756113]
[1763661960281,0.12271455,87257.0,87256.0,0.00219803]
[1763661960482,0.00090455,87257.0,87256.0,0.13756113]
[1763661960682,0.04098098,87272.0,87271.0,0.12389]
[1763661960985,0.04098098,87286.0,87280.0,0.03828]
[1763661961182,0.04098098,87288.0,87286.0,0.1353592]
[1763661961382,0.01622402,87301.0,87289.0,0.12389]
[1763661961584,0.04098098,87306.0,87290.0,0.00219803]
[1763661961881,0.00017108,87304.0,87290.0,0.00219803]
[1763661962079,0.011467,87303.0,87290.0,0.00219803]
[1763661962271,0.04115206,87304.0,87290.0,0.00219803]
[1763661962471,0.04115206,87304.0,87286.0,0.00017185]
[1763661962472,0.1128,87287.0,87286.0,0.00017185]
[1763661962675,0.001,87272.0,87271.0,0.11568]
[1763661962988,0.001,87272.0,87271.0,0.11787803]
[1763661963577,0.00017185,87280.0,87271.0,0.11787803]
[1763661964679,0.1128,87272.0,87271.0,0.00219803]
[1763661964883,0.04115283,87280.0,87271.0,0.00219803]
[1763661965187,0.04115283,87280.0,87279.0,0.1271501]
[1763661965188,0.00017185,87280.0,87279.0,0.1271501]
[1763661965378,0.00017185,87280.0,87279.0,0.12934813]
[1763661965978,0.04098098,87300.0,87290.0,0.0114686]
[1763661966186,0.04098098,87300.0,87299.0,0.00219803]
[1763661966482,0.04098098,87301.0,87299.0,0.00219803]
[1763661966786,0.04098098,87300.0,87299.0,0.00219803]
[1763661967081,0.05243,87300.0,87299.0,0.00219803]
[1763661967383,0.1138,87300.0,87299.0,0.00219803]
[1763661967779,0.001,87300.0,87299.0,0.00219803]
[1763661968280,0.001,87300.0,87299.0,0.11787803]
[1763661968480,0.1138,87300.0,87299.0,0.00219803]
[1763661969182,0.001,87300.0,87299.0,0.12934553]
[1763661971181,0.00017108,87308.0,87307.0,0.11568]
[1763661971383,0.04098222,87313.0,87312.0,0.11568]
[1763661971686,0.061353,87320.0,87317.0,0.0114651]
[1763661971687,0.04098222,87320.0,87317.0,0.0114651]
[1763661971879,0.04098222,87322.0,87320.0,0.0669047]
[1763661972183,0.1180456,87344.0,87310.0,0.2481571]
[1763661972184,0.04098222,87326.0,87325.0,0.11568]
[1763661972389,0.0168301,87331.0,87330.0,0.1271434]
[1763661972574,0.04095223,87336.0,87332.0,0.1271431]
[1763661972773,0.04095223,87339.0,87336.0,0.0114626]
[1763661972986,0.04095223,87345.0,87343.0,0.0114617]
[1763661973279,0.061353,87352.0,87337.0,1.50219803]
[1763661973280,0.04095223,87352.0,87347.0,0.0669012]
[1763661973476,0.04095223,87353.0,87351.0,0.00219803]
[1763661973679,0.1128,87352.0,87351.0,0.00219803]
[1763661975193,0.1128,87344.0,87343.0,0.00017175]
[1763661975488,0.1128,87344.0,87343.0,0.00236978]
[1763661976879,0.1128,87344.0,87343.0,1.75e-06]
[1763661977079,0.1128,87344.0,87310.0,0.2481571]
[1763661977080,0.1128,87322.0,87300.0,0.2481571]
[1763661977386,0.05243,87320.0,87319.0,0.00219803]
[1763661977886,0.04082027,87336.0,87319.0,0.00219803]
[1763661978085,0.04099169,87336.0,87319.0,0.00236978]
[1763661978787,0.00017142,87336.0,87319.0,0.00236978]
[1763661978987,0.00017142,87336.0,87319.0,0.00336978]
[1763661979484,0.00017142,87336.0,87319.0,0.00236978]
[1763661979782,0.00017142,87336.0,87333.0,0.011463]
[1763661979976,0.11297142,87336.0,87335.0,0.00219803]
[1763661980176,0.00017142,87336.0,87335.0,0.11787803]
[1763661980575,0.00017142,87336.0,87335.0,0.12934073]
[1763661980879,0.04082027,87359.0,87354.0,0.0114601]
[1763661981079,0.01697476,87360.0,87358.0,0.0114596]
[1763661981278,0.00219803,87359.0,87350.0,0.0114608]
[1763661981479,0.15362027,87374.0,87373.0,0.0114577]
[1763661981689,0.00219803,87374.0,87373.0,0.01219037]
[1763661981880,0.08953446,87374.0,87373.0,0.01219037]
[1763661982088,0.01744308,87389.0,87388.0,0.1271358]
[1763661982276,0.1027922,87425.0,87392.0,0.0114552]
[1763661982277,0.07309027,87408.0,87392.0,0.0114552]
[1763661982480,0.1128,87402.0,87401.0,0.011454]
[1763661982689,0.12992572,87402.0,87401.0,0.00219803]
[1763661982889,0.16290067,87402.0,87401.0,0.00219803]
[1763661983076,0.22327067,87402.0,87401.0,0.00219803]
[1763661984487,0.1128,87392.0,87391.0,0.00017165]
[1763661984688,0.1128,87392.0,87366.0,0.0114585]
[1763661984885,0.1128,87392.0,87370.0,0.14771507]
[1763661985084,0.1128,87392.0,87380.0,0.14771507]
[1763661985280,0.1128,87392.0,87381.0,0.00219803]
[1763661985492,0.03227,87397.0,87381.0,0.00219803]
[1763661985892,0.03227,87397.0,87386.0,0.011456]
[1763661986082,0.14507,87397.0,87396.0,0.00219803]
[1763661986787,0.00017131,87398.0,87396.0,0.00219803]
[1763661986988,0.05243,87397.0,87396.0,0.00219803]
[1763661987885,0.00017131,87398.0,87397.0,0.0114546]
[1763661988084,0.00017131,87398.0,87397.0,0.01365263]
[1763661988489,0.09334495,87402.0,87401.0,0.0668941]
[1763661988688,0.04082027,87427.0,87416.0,0.0114521]
[1763661988995,0.17998507,87440.0,87423.0,0.00219803]
[1763661988996,0.16177803,87424.0,87423.0,0.00219803]
[1763661989187,0.25150018,87424.0,87423.0,0.00219803]
[1763661989388,0.15886018,87424.0,87423.0,0.00219803]
[1763661989694,0.07972215,87424.0,87423.0,0.11787803]
[1763661989895,0.04082027,87450.0,87425.0,0.11037]
[1763661990099,0.04082027,87450.0,87423.0,0.00219803]
[1763661990100,0.04082027,87453.0,87443.0,0.0114484]
[1763661990290,0.03227,87465.0,87448.0,0.0114478]
[1763661990486,0.03227,87465.0,87449.0,0.00219803]
[1763661990682,0.03227,87465.0,87449.0,0.01364573]
[1763661991088,0.03227,87465.0,87453.0,0.0114472]
[1763661991400,0.14261,87465.0,87464.0,0.00219803]
[1763661991606,0.05401,87449.0,87448.0,0.00017155]
[1763661991789,0.05401,87449.0,87448.0,0.00236958]
[1763661991989,0.11034,87449.0,87448.0,0.00236958]
[1763661992192,0.03347,87448.0,87404.0,0.0114536]
[1763661992392,0.03347,87448.0,87420.0,0.14771507]
[1763661992591,0.03347,87448.0,87430.0,0.14771507]
[1763661992789,0.03347,87448.0,87447.0,0.00219803]
[1763661992994,0.08834,87448.0,87447.0,0.00219803]
[1763661993296,0.1426,87448.0,87447.0,0.00219803]
[1763661993499,0.1426,87448.0,87439.0,0.00017155]
[1763661993500,0.10913,87440.0,87439.0,0.00017155]
[1763661993698,0.10913,87440.0,87410.0,0.14771507]
[1763661994008,0.03347,87448.0,87380.0,0.74947999]
[1763661994009,0.10913,87412.0,87411.0,0.00219803]
[1763661994497,0.0169661,87416.0,87411.0,0.00219803]
[1763661994703,0.00017155,87422.0,87411.0,0.01365073]
[1763661994904,0.00017155,87422.0,87414.0,0.0114523]
[1763661995097,0.09169077,87422.0,87421.0,0.10745803]
[1763661995804,0.00017155,87422.0,87421.0,0.10745803]
[1763661996603,0.01717411,87437.0,87436.0,0.0114495]
[1763661996910,0.1426,87448.0,87447.0,0.00219803]
[1763661997199,0.09129973,87449.0,87447.0,0.10745803]
[1763661997401,0.03347,87480.0,87449.0,0.0114478]
[1763661997599,0.0911447,87465.0,87464.0,0.00219803]
[1763661997793,0.00017121,87466.0,87464.0,0.00219803]
[1763661997998,0.00017121,87466.0,87465.0,0.0539]
[1763661998203,0.1086009,87480.0,87465.0,0.00219803]
[1763661998404,0.00923968,87494.0,87479.0,0.0114438]
[1763661998600,0.00923968,87494.0,87470.0,0.14771507]
[1763661998601,0.20773637,87494.0,87493.0,0.00219803]
[1763661998806,0.20773637,87494.0,87470.0,0.14771507]
[1763661998807,0.05487,87481.0,87480.0,0.00219803]
[1763661999002,0.02609872,87494.0,87481.0,0.0114435]
[1763661999196,0.13522872,87494.0,87493.0,0.00219803]
[1763661999405,0.13522872,87494.0,87478.0,0.00017144]
[1763661999598,0.13522872,87494.0,87479.0,0.00219803]
[1763661999904,0.13522872,87494.0,87480.0,0.0114437]
[1763662000109,0.13622872,87494.0,87481.0,0.00219803]
[1763662000408,0.13622872,87494.0,87463.0,0.0366]
[1763662000409,0.10913,87479.0,87440.0,0.14771507]
[1763662000601,0.10913,87479.0,87459.0,0.00219803]
[1763662001305,0.10913,87479.0,87460.0,0.0114462]
[1763662001507,0.10913,87462.0,87461.0,0.00219803]
[1763662001703,0.10913,87462.0,87461.0,0.00236947]
[1763662001899,0.03347,87476.0,87461.0,0.00236947]
[1763662002201,0.03347,87476.0,87469.0,0.0114451]
[1763662002419,0.00017109,87478.0,87476.0,0.0114442]
[1763662002719,0.00017109,87478.0,87477.0,0.00219803]
[1763662002924,0.10930109,87478.0,87477.0,0.00219803]
[1763662004216,0.10930109,87478.0,87461.0,0.00017144]
[1763662004424,0.10913,87463.0,87462.0,0.00219803]
[1763662004617,0.00017109,87478.0,87462.0,0.00219803]
[1763662004824,0.00017109,87478.0,87463.0,0.0114459]
[1763662005131,0.10913,87465.0,87464.0,0.00219803]
[1763662006522,0.11013,87465.0,87464.0,0.00219803]
[1763662006725,0.02609872,87494.0,87464.0,0.40219803]
[1763662006926,0.02609872,87494.0,87470.0,0.14771507]
[1763662007114,0.02609872,87494.0,87471.0,0.00219803]
[1763662007318,0.02609872,87494.0,87480.0,0.0114437]
[1763662007513,0.02609872,87494.0,87465.0,0.0114457]
[1763662007514,0.11955581,87494.0,87481.0,0.00219803]
[1763662007719,0.00923968,87494.0,87493.0,0.10526]
[1763662008025,0.00923968,87494.0,87493.0,0.00219803]
[1763662008321,0.14771507,87520.0,87494.0,0.0114419]
[1763662008528,0.14771507,87520.0,87499.0,0.0114411]
[1763662008729,0.14771507,87520.0,87500.0,0.00219803]
[1763662009026,0.10913,87500.0,87499.0,1.44e-06]
[1763662009331,0.20150296,87500.0,87470.0,0.14771507]
[1763662009629,0.20150296,87500.0,87481.0,0.0114436]
[1763662009817,0.09017493,87500.0,87499.0,0.00073267]
[1763662010021,0.0166414,87516.0,87515.0,0.10526]
[1763662010223,0.05748,87554.0,87515.0,0.10526]
[1763662010224,0.04082027,87563.0,87535.0,0.0114365]
[1763662010521,0.0166414,87538.0,87537.0,0.0539]
[1763662010717,0.00219803,87550.0,87537.0,1.50073267]
[1763662011032,0.0195573,87550.0,87537.0,1.50073267]
[1763662011216,0.00219803,87550.0,87537.0,1.50073267]
[1763662011415,0.01893763,87550.0,87541.0,0.0114357]
[1763662011621,0.12806763,87550.0,87549.0,0.00073267]
[1763662011822,0.11132803,87550.0,87549.0,0.00073267]
[1763662012317,0.05706803,87550.0,87549.0,0.00073267]
[1763662012525,0.11132803,87550.0,87549.0,0.00073267]
[1763662012828,0.018987,87550.0,87549.0,0.00073267]
[1763662013025,0.128117,87550.0,87549.0,0.00073267]
[1763662013625,0.018987,87550.0,87549.0,0.00073267]
[1763662014630,0.04082027,87559.0,87557.0,0.10526]
[1763662014824,0.04082027,87559.0,87537.0,1.5]
[1763662014825,0.11132803,87559.0,87558.0,0.00073267]
[1763662015025,0.00219803,87559.0,87558.0,0.00073267]
[1763662015220,0.07416182,87559.0,87558.0,0.00073267]
[1763662015725,0.05706803,87559.0,87558.0,0.00073267]
[1763662016035,0.00219803,87559.0,87558.0,0.00073267]
[1763662016226,0.00219803,87559.0,87558.0,0.10599267]
[1763662016422,0.00219803,87559.0,87558.0,0.00073267]
[1763662016632,0.11132803,87559.0,87558.0,0.00073267]
[1763662017634,0.10913,87550.0,87549.0,0.00017134]
[1763662017819,0.11132803,87550.0,87549.0,0.00090401]
[1763662019736,0.11132803,87550.0,87531.0,1.5]
[1763662019737,0.10913,87532.0,87531.0,1.5]
[1763662020031,0.11132803,87532.0,87513.0,0.72116]
[1763662020235,0.10913,87515.0,87514.0,0.00073267]
[1763662020531,0.11132803,87515.0,87491.0,1.5]
[1763662020836,0.00017101,87512.0,87494.0,0.00017134]
[1763662021035,0.00219803,87511.0,87494.0,0.00017134]
[1763662021238,0.05706803,87511.0,87510.0,0.00073267]
[1763662021533,0.00219803,87511.0,87510.0,0.00073267]
[1763662021728,0.00017101,87512.0,87511.0,0.1166997]
[1763662021922,0.04082027,87531.0,87511.0,0.00073267]
[1763662022129,0.10913,87512.0,87511.0,0.00073267]
[1763662022327,0.11132803,87512.0,87492.0,0.0114421]
[1763662022534,0.00219803,87512.0,87495.0,0.0114417]
[1763662022722,0.10486803,87512.0,87511.0,0.00073267]
[1763662023122,0.10267,87504.0,87503.0,0.00017134]
[1763662023326,0.10486803,87504.0,87503.0,0.00017134]
[1763662023527,0.10486803,87504.0,87503.0,0.00090401]
[1763662023832,0.10267,87492.0,87470.0,0.14771507]
[1763662024035,0.10267,87492.0,87461.0,0.7323662]
[1763662024036,0.10486803,87492.0,87491.0,0.00073267]
[1763662024233,0.04058479,87507.0,87506.0,0.0602803]
[1763662024530,0.1027922,87543.0,87506.0,0.00073267]
[1763662024531,0.14771507,87540.0,87506.0,0.00073267]
[1763662024738,0.05008,87519.0,87518.0,0.0114387]
[1763662024927,0.00017145,87528.0,87518.0,1.50073267]
[1763662025129,0.05008,87519.0,87518.0,1.50073267]
[1763662025328,0.10486803,87519.0,87518.0,0.00073267]
[1763662025533,0.10267,87512.0,87511.0,0.00017145]
[1763662025837,0.10486803,87512.0,87492.0,1.5]
[1763662026032,0.10486803,87512.0,87502.0,0.0114408]
[1763662026336,0.00219803,87512.0,87511.0,0.00073267]
[1763662026532,0.10486803,87512.0,87511.0,0.00073267]
[1763662026728,0.05008,87504.0,87503.0,0.00017145]
[1763662026933,0.10486803,87504.0,87503.0,0.00090412]
[1763662028240,0.10486803,87504.0,87470.0,0.14771507]
[1763662028436,0.14771507,87500.0,87484.0,0.0114432]
[1763662028645,0.00219803,87499.0,87485.0,0.00073267]
[1763662028935,0.00219803,87499.0,87488.0,0.0114426]
[1763662029139,0.10486803,87499.0,87498.0,0.00073267]
[1763662029343,0.10267,87486.0,87485.0,0.00017145]
[1763662029538,0.10486803,87486.0,87485.0,0.00090412]
[1763662029940,0.00219803,87486.0,87485.0,0.00090412]
[1763662030145,0.10486803,87486.0,87485.0,0.00090412]
[1763662030338,0.061353,87500.0,87498.0,0.0114414]
[1763662030533,0.00017145,87502.0,87500.0,0.0114411]
[1763662030738,0.00017145,87502.0,87501.0,0.01217367]
[1763662031239,0.00236948,87502.0,87501.0,0.00073267]
[1763662031441,0.10303948,87502.0,87501.0,0.00219803]
[1763662031942,0.05044948,87502.0,87501.0,0.00219803]
[1763662032145,0.00036948,87502.0,87501.0,0.00219803]
[1763662032441,0.10303948,87502.0,87501.0,0.00219803]
[1763662032946,0.10303948,87502.0,87485.0,0.00017145]
[1763662033139,0.10303948,87502.0,87486.0,0.00219803]
[1763662033346,0.05008,87487.0,87486.0,0.01364093]
[1763662033535,0.00036948,87487.0,87486.0,0.00219803]
[1763662033934,0.10303948,87487.0,87486.0,0.00219803]
[1763662034134,0.50267,87486.0,87460.0,0.01157491]
[1763662034343,0.23932807,87480.0,87461.0,0.01364423]
[1763662034537,0.00036948,87479.0,87462.0,0.0303]
[1763662034738,0.00036948,87479.0,87478.0,0.05103803]
[1763662035139,0.10303948,87479.0,87478.0,0.00219803]
[1763662035338,0.00036948,87479.0,87478.0,0.00219803]
[1763662035539,0.05044948,87479.0,87478.0,0.00219803]
[1763662035738,0.10303948,87479.0,87478.0,0.00219803]
[1763662036546,0.05044948,87479.0,87478.0,0.00219803]
[1763662037042,0.00036948,87479.0,87478.0,0.05103803]
[1763662037248,0.00036948,87479.0,87478.0,0.10498803]
[1763662037747,0.00036948,87479.0,87478.0,0.00219803]
[1763662037952,0.10303948,87479.0,87478.0,0.00219803]
[1763662038143,0.10267,87471.0,87470.0,0.00017145]
[1763662038338,0.10303948,87471.0,87470.0,0.00017145]
[1763662038539,0.10303948,87471.0,87470.0,0.00236948]
[1763662039343,0.01605661,87471.0,87470.0,0.00236948]
[1763662039643,0.11872661,87471.0,87470.0,0.00236948]
[1763662040348,0.11872661,87471.0,87460.0,0.00012861]
[1763662040349,0.10267,87461.0,87460.0,0.00012861]
[1763662040658,0.10267,87461.0,87426.0,0.0417508]
[1763662040659,0.10303948,87461.0,87432.0,0.0114499]
[1763662040947,0.09071278,87461.0,87433.0,0.00219803]
[1763662041152,0.14771507,87460.0,87433.0,0.00219803]
[1763662041451,0.00017155,87455.0,87438.0,0.00017155]
[1763662041649,0.10303948,87439.0,87438.0,0.00017155]
[1763662041846,0.10316277,87439.0,87438.0,0.00017155]
[1763662042046,0.10316277,87439.0,87438.0,0.00236958]
[1763662042254,0.10316277,87439.0,87390.0,0.22906115]
[1763662042548,0.05008,87427.0,87422.0,0.0114513]
[1763662042754,0.05008,87425.0,87424.0,0.0114511]
[1763662043057,0.00219803,87425.0,87424.0,0.11460429]
[1763662043250,0.0001132,87426.0,87424.0,0.11460429]
[1763662043251,0.0001132,87426.0,87425.0,0.10279]
[1763662043454,0.10498123,87426.0,87425.0,0.00036319]
[1763662043652,0.13524123,87426.0,87416.0,0.04332248]
[1763662043851,0.10267,87418.0,87417.0,0.00036319]
[1763662044049,0.10498564,87418.0,87417.0,0.00036319]
[1763662044651,0.1206515,87418.0,87417.0,0.00036319]
[1763662044954,0.05008,87391.0,87372.0,0.0303]
[1763662045148,0.00219803,87384.0,87383.0,0.11437122]
[1763662045350,0.00219803,87384.0,87383.0,0.11473441]
[1763662045651,0.12097402,87384.0,87383.0,0.00012482]
[1763662045856,0.12097402,87384.0,87372.0,0.0114578]
[1763662046056,0.12097402,87384.0,87383.0,0.00036319]
[1763662046057,0.00219803,87384.0,87383.0,0.00036319]
[1763662046441,0.10486803,87384.0,87383.0,0.00136319]
[1763662047048,0.00219803,87384.0,87383.0,0.10415319]
[1763662047256,0.00017165,87392.0,87391.0,0.0114554]
[1763662047451,0.00236968,87392.0,87391.0,0.01181859]
[1763662047854,0.00236968,87392.0,87391.0,0.00036319]
[1763662048045,0.00248213,87392.0,87391.0,0.04920319]
[1763662048655,0.05256213,87392.0,87391.0,0.00036319]
[1763662048949,0.10515213,87392.0,87383.0,0.00011452]
[1763662049155,0.10515213,87392.0,87383.0,0.00047771]
[1763662049156,0.05008,87384.0,87383.0,0.00047771]
[1763662049346,0.10496091,87384.0,87383.0,0.00011452]
[1763662049542,0.10496091,87384.0,87383.0,0.00147771]
[1763662049758,0.00229091,87384.0,87383.0,0.09904771]
[1763662050247,0.00229091,87384.0,87383.0,0.09804771]
[1763662050655,0.00229091,87384.0,87383.0,0.00047771]
[1763662050855,0.00229091,87384.0,87383.0,0.09804771]
[1763662051063,9.288e-05,87384.0,87383.0,0.09804771]
[1763662051253,0.00229091,87384.0,87383.0,0.09804771]
[1763662051453,0.00229091,87384.0,87383.0,0.00047771]
[1763662051751,0.09852091,87384.0,87383.0,0.00047771]
[1763662051961,0.00229091,87384.0,87383.0,0.09804771]
[1763662052345,0.00229091,87384.0,87383.0,0.00047771]
[1763662053246,0.00229091,87384.0,87383.0,0.05065771]
[1763662053448,9.288e-05,87384.0,87383.0,0.09995771]
[1763662053651,0.00229091,87384.0,87383.0,0.09995771]
[1763662054159,0.00229091,87384.0,87383.0,0.09895771]
[1763662055851,9.288e-05,87384.0,87383.0,0.09895771]
[1763662056056,0.00229091,87384.0,87383.0,0.09895771]
[1763662056255,0.00229091,87384.0,87383.0,0.00047771]
[1763662056657,0.00229091,87384.0,87383.0,0.01193411]
[1763662057161,0.00229091,87384.0,87383.0,0.11041411]
[1763662057559,0.00229091,87384.0,87383.0,0.06111411]
[1763662058363,0.00229091,87384.0,87383.0,0.11041411]
[1763662058570,9.288e-05,87384.0,87383.0,0.11041411]
[1763662060249,0.00017165,87392.0,87391.0,0.1099354]
[1763662060467,0.00017165,87392.0,87391.0,0.11029859]
[1763662060664,0.00236968,87392.0,87391.0,0.09884319]
[1763662060854,0.05009968,87392.0,87391.0,0.00036319]
[1763662061063,0.10012968,87392.0,87391.0,0.00036319]
[1763662061260,0.10022257,87392.0,87391.0,0.00036319]
[1763662062468,0.05019257,87392.0,87391.0,0.00036319]
[1763662062672,0.00246257,87392.0,87391.0,0.04954319]
[1763662062869,0.05019257,87392.0,87391.0,0.00036319]
[1763662063069,0.12899257,87392.0,87391.0,0.00036319]
[1763662063267,0.03123257,87392.0,87391.0,0.00036319]
[1763662063469,0.10022257,87392.0,87391.0,0.00036319]
[1763662063667,0.00246257,87392.0,87391.0,0.09884319]
[1763662063875,0.10022257,87392.0,87391.0,0.00036319]
[1763662064170,0.12899257,87392.0,87391.0,0.00036319]
[1763662064377,0.03123257,87392.0,87388.0,0.0114557]
[1763662064573,0.03123257,87392.0,87383.0,0.00011452]
[1763662064574,0.05019257,87392.0,87391.0,0.00036319]
[1763662064772,0.09776,87384.0,87383.0,0.00047771]
[1763662064979,0.1000739,87384.0,87383.0,0.00047771]
[1763662065168,0.1000739,87384.0,87383.0,0.00011452]
[1763662065470,0.1000739,87384.0,87354.0,0.0417601]
[1763662065471,0.00219803,87384.0,87354.0,0.0303]
[1763662065675,0.00013733,87383.0,87370.0,0.0114581]
[1763662065873,0.00013733,87383.0,87373.0,0.0114577]
[1763662066084,0.00013733,87383.0,87374.0,0.00036319]
[1763662066085,0.09776,87375.0,87374.0,0.00036319]
[1763662066278,0.10008008,87375.0,87374.0,0.00036319]
[1763662066467,0.10008008,87375.0,87366.0,0.0114585]
[1763662066468,0.09776,87367.0,87366.0,0.0114587]
[1763662066775,0.10005644,87367.0,87366.0,0.00036319]
[1763662066978,0.09776,87354.0,87353.0,0.0114604]
[1763662067275,0.00233627,87354.0,87353.0,0.06100359]
[1763662067473,0.00017165,87362.0,87361.0,0.1099393]
[1763662067674,0.00236968,87362.0,87361.0,0.11030249]
[1763662068676,0.00236968,87362.0,87361.0,0.01182249]
[1763662069180,0.00017165,87362.0,87361.0,0.11030249]
[1763662069574,0.10012968,87362.0,87361.0,0.00036319]
[1763662070081,0.00236968,87362.0,87361.0,0.09884319]
[1763662070277,0.00236968,87362.0,87361.0,0.00036319]
[1763662070278,0.10012968,87362.0,87361.0,0.00036319]
[1763662071578,0.05009968,87362.0,87361.0,0.00036319]
[1763662071970,0.09776,87351.0,87337.0,0.00014437]
[1763662072172,0.00219803,87350.0,87345.0,0.00036319]
[1763662072371,0.00219803,87350.0,87349.0,0.09848]
[1763662072577,0.00219803,87350.0,87349.0,0.09884319]
[1763662073080,0.00219803,87350.0,87349.0,0.00036319]
[1763662074081,0.09995803,87350.0,87349.0,0.00036319]
[1763662074283,0.11599985,87350.0,87349.0,0.00036319]
[1763662074486,0.09776,87338.0,87337.0,0.00114437]
[1763662074783,0.09995803,87338.0,87337.0,0.00150756]
[1763662074978,0.04992803,87338.0,87337.0,0.00150756]
[1763662075281,0.00219803,87338.0,87337.0,0.00150756]
[1763662075584,0.00219803,87338.0,87337.0,0.00050756]
[1763662075585,0.09995803,87338.0,87337.0,0.00050756]
[1763662076379,0.09995803,87338.0,87337.0,0.00150756]
[1763662077271,0.09995803,87338.0,87337.0,0.00050756]
[1763662077474,0.09995803,87338.0,87337.0,0.00150756]
[1763662078585,0.09995803,87338.0,87314.0,0.0114654]
[1763662078774,0.00017176,87335.0,87314.0,0.0114654]
[1763662078975,0.00219803,87334.0,87314.0,0.0114654]
[1763662079279,0.00219803,87334.0,87312.0,0.02941]
[1763662079280,0.00219803,87334.0,87324.0,0.0114641]
[1763662079482,0.09776,87325.0,87324.0,0.0114641]
[1763662079681,0.09776,87322.0,87321.0,0.0114645]
[1763662079985,0.00219803,87322.0,87321.0,0.1099445]
[1763662080377,0.00010854,87325.0,87324.0,0.1099442]
[1763662080777,0.05003657,87325.0,87324.0,0.0606442]
[1763662080974,0.00017176,87335.0,87334.0,0.1099429]
[1763662081280,0.04099335,87379.0,87360.0,0.02941]
[1763662081479,0.00219803,87379.0,87345.0,0.01899]
[1763662081687,0.01787179,87379.0,87360.0,0.00777]
[1763662081981,0.01787179,87379.0,87375.0,0.0114574]
[1763662082177,5.814e-05,87378.0,87377.0,0.09848]
[1763662082581,6e-08,87386.0,87385.0,0.1019062]
[1763662083981,6e-08,87386.0,87385.0,0.1029062]
[1763662084373,0.0266,87424.0,87385.0,0.1029062]
[1763662084374,0.01618908,87411.0,87385.0,0.401]
[1763662084576,0.00219803,87410.0,87401.0,0.011454]
[1763662084785,0.00219803,87410.0,87402.0,0.0114539]
[1763662085087,0.00219803,87410.0,87399.0,0.0114542]
[1763662085276,0.00219803,87410.0,87394.0,0.0114549]
[1763662085680,0.00219803,87410.0,87404.0,0.0114536]
[1763662085883,0.00017165,87411.0,87410.0,0.1019029]
[1763662086784,1.65e-06,87411.0,87410.0,0.1019029]
[1763662087584,0.00100165,87411.0,87410.0,0.09045]
[1763662088185,0.00319968,87411.0,87404.0,0.0114536]
[1763662088375,0.00100165,87411.0,87410.0,0.09045]
[1763662088774,0.00100165,87411.0,87383.0,0.03067973]
[1763662088775,0.00319968,87411.0,87394.0,0.011455]
[1763662089085,0.00319968,87411.0,87400.0,0.0114541]
[1763662089284,0.00319968,87411.0,87403.0,0.0114537]
[1763662089487,0.00100165,87411.0,87410.0,0.09045]
[1763662089678,1.65e-06,87411.0,87410.0,0.09045]
[1763662089983,1.65e-06,87411.0,87408.0,0.0114531]
[1763662089984,0.00319968,87411.0,87409.0,0.0114529]
[1763662090182,0.00100165,87411.0,87410.0,0.09045]
[1763662090588,0.00219968,87411.0,87382.0,0.0114565]
[1763662090883,0.00100165,87411.0,87410.0,0.09045]
[1763662091391,0.01601606,87429.0,87428.0,0.1019005]
[1763662091684,0.00219803,87429.0,87428.0,0.09045]
[1763662092080,0.01842603,87429.0,87424.0,0.011451]
[1763662092287,0.01842603,87429.0,87418.0,0.00017165]
[1763662092481,0.09133,87425.0,87418.0,0.00017165]
[1763662092684,0.00219803,87419.0,87418.0,0.00017165]
[1763662092890,0.09352803,87419.0,87418.0,0.00017165]
[1763662093490,0.09352803,87419.0,87390.0,0.24717036]
[1763662093684,0.09352803,87419.0,87398.0,0.0114544]
[1763662093993,0.09352803,87419.0,87390.0,0.0114554]
[1763662094184,0.09352803,87419.0,87390.0,0.24717036]
[1763662094384,0.00017165,87413.0,87406.0,0.0114534]
[1763662094584,0.09133,87407.0,87396.0,0.00017165]
[1763662094785,0.00219803,87407.0,87404.0,0.0114537]
[1763662095192,0.00017165,87413.0,87406.0,0.09045]
[1763662095389,0.00017165,87413.0,87412.0,0.0114526]
[1763662095588,0.0453,87404.0,87396.0,0.00017165]
[1763662095785,0.00236968,87413.0,87396.0,0.01162635]
[1763662095786,0.09352803,87397.0,87396.0,0.01162635]
[1763662095991,0.00219803,87397.0,87396.0,0.10207635]
[1763662096784,0.00219803,87397.0,87396.0,0.05611635]
[1763662097079,0.00017165,87413.0,87396.0,0.00017165]
[1763662097292,0.00219803,87412.0,87407.0,0.0114533]
[1763662097592,0.00219803,87412.0,87409.0,0.011453]
[1763662098200,0.00219803,87412.0,87396.0,0.00017165]
[1763662098587,0.00219803,87412.0,87410.0,0.0114529]
[1763662098786,0.09133,87411.0,87410.0,0.0114529]
[1763662099094,0.00219803,87411.0,87410.0,0.0559429]
[1763662099280,0.00219803,87411.0,87410.0,0.1019029]
[1763662099994,0.00219803,87411.0,87410.0,0.0114529]
[1763662100292,0.09133,87407.0,87396.0,0.00017165]
[1763662100489,0.00219803,87406.0,87404.0,0.0114536]
[1763662100688,0.04547165,87413.0,87412.0,0.0114526]
[1763662100886,0.04766968,87413.0,87412.0,0.0114526]
[1763662101087,0.04766968,87413.0,87409.0,0.011453]
[1763662101397,0.09133,87408.0,87407.0,0.0114532]
[1763662101586,0.09133,87397.0,87396.0,0.01162635]
[1763662101786,0.09352803,87397.0,87396.0,0.00017165]
[1763662102092,0.00219803,87397.0,87396.0,0.09062165]
[1763662102996,0.0266,87408.0,87407.0,0.0114533]
[1763662103199,0.00219803,87407.0,87406.0,0.0559434]